fUST/lending_fUST_20240718
["ID","MTS","AMOUNT","RATE_DAILY","PERIOD"]
[332485038,1721243447637,-500.0,0.00021917,2]
[332485039,1721243447648,-507.5197784,0.00021917,2]
[332485040,1721243447658,-500.0,0.00021917,2]
[332485041,1721243447670,-500.0,0.00021917,2]
[332485042,1721243447680,-500.0,0.00021917,2]
[332485043,1721243447690,-324.80919972,0.00021917,2]
[332485044,1721243447701,-500.0,0.00021917,2]
[332485045,1721243447711,-500.0,0.00021917,2]
[332485046,1721243447724,-500.0,0.00021917,2]
[332485047,1721243447735,-500.0,0.00021917,2]
[332485048,1721243447746,-500.0,0.00021917,2]
[332485049,1721243447761,-500.0,0.00021917,2]
[332485050,1721243447772,-500.0,0.00021917,2]
[332485051,1721243447782,-500.0,0.00021917,2]
[332485052,1721243447793,-509.84706491,0.00021917,2]
[332485053,1721243447804,-500.0,0.00021917,2]
[332485054,1721243447814,-500.0,0.00021917,2]
[332485055,1721243447823,-500.0,0.00021917,2]
[332485056,1721243447834,-575.66457202,0.00021917,2]
[332485057,1721243447845,-419.05937172,0.00021917,2]
[332485058,1721243448136,-80.94062828,0.00021917,2]
[332485059,1721243448146,-500.0,0.00021917,2]
[332485060,1721243448156,-500.0,0.00021917,2]
[332485061,1721243448167,-213.4937035,0.00021917,2]
[332485063,1721244052329,-3860.96331341,0.0001594,2]
[332485066,1721244258144,-1445.3968897,0.00016157,2]
[332485067,1721244258169,-250.0,0.00016692,2]
[332485068,1721244258193,-250.0,0.00016738,2]
[332485069,1721244258218,-250.0,0.00016784,2]
[332485070,1721244258242,-250.0,0.0001683,2]
[332485071,1721244258266,-250.0,0.00016876,2]
[332485072,1721244258290,-250.0,0.00016921,2]
[332485073,1721244258314,-250.0,0.00016967,2]
[332485074,1721244296560,7033.7798391,0.00016624,2]
[332485075,1721244299485,159.528528,0.00016142,2]
[332485076,1721244366547,-250.0,0.00017013,2]
[332485077,1721244366571,-250.0,0.00017059,2]
[332485078,1721244366597,-250.0,0.00017105,2]
[332485079,1721244366623,-250.0,0.0001715,2]
[332485080,1721244366649,-250.0,0.00017196,2]
[332485081,1721244366677,-250.0,0.00017242,2]
[332485082,1721244366703,-250.0,0.00017288,2]
[332485083,1721244366729,-250.0,0.00017333,2]
[332485084,1721244366753,-250.0,0.00017379,2]
[332485085,1721244366777,-250.0,0.00017425,2]
[332485086,1721244366803,-300.0,0.0001745,2]
[332485087,1721244366827,-24900.0,0.00017451,2]
[332485088,1721244366850,-250.0,0.00017471,2]
[332485089,1721244366874,-250.0,0.00017517,2]
[332485090,1721244366898,-250.0,0.00017562,2]
[332485092,1721244535723,-205.86218568,0.0001741,2]
[332485094,1721244535752,-160.24652733,0.0001741,2]
[332485095,1721244535781,-322.32583377,0.0001741,2]
[332485117,1721244632096,-300.0,0.0001808,2]
[332485118,1721244632108,-5450.12329266,0.00018081,2]
[332485119,1721244632122,-24549.87670734,0.00018081,2]
[332485120,1721244632133,-611.94353023,0.000188,2]
[332485121,1721244632145,-183.96100762,0.000189,2]
[332485122,1721244632157,-7.11814861,0.00019112,2]
[332485138,1721244638092,-242.88185139,0.00019112,2]
[332485139,1721244638103,-375.33441118,0.00019163,2]
[332485141,1721244638114,-460.52728495,0.00019163,2]
[332485142,1721244638124,-250.0,0.00019164,2]
[332485143,1721244638135,-250.0,0.00019217,2]
[332485144,1721244638147,-250.0,0.00019269,2]
[332485145,1721244638157,-250.0,0.00019321,2]
[332485146,1721244638168,-420.59435492,0.00019323,2]
[332485147,1721244638179,-309.27334028,0.00019373,2]
[332485148,1721244638188,-250.0,0.00019374,2]
[332485149,1721244638198,-250.0,0.00019426,2]
[332485150,1721244638207,-214.05102564,0.00019479,2]
[332485151,1721244638600,-35.94897436,0.00019479,2]
[332485152,1721244638610,-159.77050882,0.00019504,2]
[332485153,1721244638619,-163.429298,0.00019505,2]
[332485154,1721244638628,-250.0,0.00019531,2]
[332485155,1721244638639,-250.0,0.00019583,2]
[332485156,1721244638650,-8251.51109965,0.00019608,2]
[332485157,1721244638670,-1375.0619425,0.00019608,2]
[332485158,1721244638684,-167.36301365,0.00019608,2]
[332485159,1721244638695,-250.0,0.00019636,2]
[332485160,1721244638705,-250.0,0.00019688,2]
[332485161,1721244638716,-38.02866142,0.00019741,2]
[332485218,1721244643520,-211.97133858,0.00019741,2]
[332485219,1721244643532,-250.0,0.00019793,2]
[332485220,1721244643543,-250.0,0.00019846,2]
[332485221,1721244643556,-249.0,0.00019888,2]
[332485222,1721244643566,-250.0,0.00019898,2]
[332485223,1721244643576,-611.9435302,0.00019936,2]
[332485224,1721244643586,-250.0,0.0001995,2]
[332485225,1721244643595,-250.0,0.00020003,2]
[332485226,1721244643605,-250.0,0.00020055,2]
[332485227,1721244643614,-250.0,0.00020108,2]
[332485228,1721244643625,-306.0,0.00020978,2]
[332485229,1721244643634,-2511.86837968,0.00021,2]
[332485278,1721245832221,-254.0297804,0.00017856,2]
[332485280,1721245832231,-250.0,0.00017857,2]
[332485282,1721245832241,-250.0,0.00017906,2]
[332485284,1721245832251,-250.0,0.00017955,2]
[332485286,1721245832260,-1000.0,0.00018,2]
[332485288,1721245832270,-250.0,0.00018004,2]
[332485290,1721245832280,-250.0,0.00018053,2]
[332485292,1721245832290,-250.0,0.00018102,2]
[332485294,1721245832300,-250.0,0.00018151,2]
[332485296,1721245832310,-250.0,0.000182,2]
[332485298,1721245832320,-250.0,0.00018249,2]
[332485300,1721245832330,-250.0,0.00018298,2]
[332485302,1721245832340,-250.0,0.00018347,2]
[332485304,1721245832349,-250.0,0.00018396,2]
[332485305,1721245832359,-661.2548085,0.00018442,2]
[332485307,1721245832369,-250.0,0.00018445,2]
[332485309,1721245832378,-250.0,0.00018494,2]
[332485311,1721245832388,-249.0,0.00018497,2]
[332485313,1721245832397,-3207.60641283,0.00018498,2]
[332485316,1721245832432,-270.5513048,0.00018498,2]
[332485349,1721245840418,-26521.84228237,0.00018498,2]
[332485350,1721245840429,-250.0,0.00018542,2]
[332485351,1721245840440,-250.0,0.00018591,2]
[332485352,1721245840450,-250.0,0.0001864,2]
[332485353,1721245840459,-250.0,0.00018689,2]
[332485354,1721245840469,-250.0,0.00018738,2]
[332485355,1721245840478,-250.0,0.00018787,2]
[332485356,1721245840488,-466.90886209,0.000189,2]
[332485357,1721245840498,-1000.0,0.00019,3]
[332485358,1721245840508,-661.25480843,0.0001955,2]
[332485359,1721245840521,-159.528528,0.00019948,2]
[332485360,1721245840531,-1000.0,0.0002,20]
[332485361,1721245840541,-154.79103211,0.00020075,2]
[332485362,1721245840550,-347.8044533,0.00020076,2]
[332485363,1721245840561,-3679.90359873,0.00020238,2]
[332485364,1721245840571,-347.8044533,0.00020393,2]
[332485365,1721245840581,-3679.90359873,0.0002054,2]
[332485366,1721245840590,-2334.38870077,0.00020574,2]
[332485367,1721245840602,-20451.81090947,0.00020575,5]
[332485368,1721245840611,-3679.90359873,0.00020575,2]
[332485369,1721245840621,-661.25480843,0.00020659,2]
[332485370,1721245840632,-347.8044533,0.00020692,2]
[332485371,1721245840643,-4481.09404895,0.00021,2]
[332485372,1721245840653,-1000.0,0.00021,21]
[332485373,1721245840663,-504.0,0.00021076,2]
[332485374,1721245840673,-251.432,0.00021076,2]
[332485375,1721245840682,-466.074449,0.00021096,2]
[332485376,1721245840692,-221.828808,0.00021096,2]
[332485377,1721245840702,-412.9331954,0.00021644,2]
[332485378,1721245840711,-536.17413635,0.000217,2]
[332485379,1721245840721,-536.17413632,0.00021729,2]
[332485380,1721245840731,-536.17413632,0.00021759,2]
[332485381,1721245840741,-661.25480843,0.00021767,2]
[332485382,1721245840751,-877.44,0.0002178,3]
[332485383,1721245840761,-536.17413632,0.00021788,2]
[332485384,1721245840772,-151.0,0.00021788,2]
[332485385,1721245840782,-277.23392603,0.00021789,2]
[332485386,1721245840794,-500.0,0.00021789,2]
[332485387,1721245840805,-28250.6633201,0.0002179,3]
[332485388,1721245840815,-9416.88777335,0.00021797,3]
[332485389,1721245840827,-1311.69543262,0.00021799,6]
[332485390,1721245840837,-500.0,0.00021799,2]
[332485391,1721245840849,-500.0,0.00021799,2]
[332485392,1721245840859,-293.85054074,0.00021799,2]
[332485393,1721245840869,-478.4050389,0.00021799,2]
[332485394,1721245840879,-550.0,0.00021799,2]
[332485395,1721245840890,-500.0,0.00021799,2]
[332485396,1721245840902,-500.0,0.00021799,2]
[332485397,1721245840913,-500.0,0.00021799,2]
[332485398,1721245840923,-204.43113703,0.00021799,2]
[332485399,1721245840935,-500.0,0.00021799,2]
[332485400,1721245840945,-500.0,0.00021799,2]
[332485401,1721245840956,-185.65126172,0.00021799,2]
[332485402,1721245840967,-500.0,0.00021799,2]
[332485403,1721245840977,-375.09542665,0.00021799,2]
[332485404,1721245840987,-500.0,0.00021799,2]
[332485405,1721245840997,-500.0,0.00021799,2]
[332485406,1721245841007,-500.0,0.00021799,2]
[332485407,1721245841018,-500.0,0.00021799,2]
[332485408,1721245841028,-300.22446644,0.000218,2]
[332485409,1721245841040,-146546.6602239,0.000218,2]
[332485410,1721245841051,-150.0,0.000218,2]
[332485411,1721245841061,-36442.28106319,0.00021807,3]
[332485412,1721245841072,-182.32246841,0.00021816,2]
[332485413,1721245841083,-407.41997679,0.00021816,2]
[332485414,1721245841093,-536.17413632,0.00021817,2]
[332485415,1721245841103,-37667.5510934,0.0002189,3]
[332485416,1721245841114,-320.70573166,0.00021896,2]
[332485417,1721245841126,-18833.7755467,0.00021897,3]
[332485418,1721245841137,-9416.88777335,0.00021897,3]
[332485419,1721245841147,-1311.0,0.00021898,7]
[332485420,1721245841156,-55525.84081913,0.000219,5]
[332485468,1721245843383,-5428.81190988,0.000219,5]
[332485530,1721245846234,-12312.73319572,0.000219,5]
[332485536,1721247032367,-250.0,0.00018008,2]
[332485537,1721247032377,-74.87774632,0.00018058,2]
[332485538,1721247032419,-175.12225368,0.00018058,2]
[332485539,1721247032429,-250.0,0.00018107,2]
[332485540,1721247032438,-250.0,0.00018156,2]
[332485541,1721247032448,-250.0,0.00018206,2]
[332485542,1721247032458,-250.0,0.00018255,2]
[332485543,1721247032468,-250.0,0.00018305,2]
[332485544,1721247032478,-250.0,0.00018354,2]
[332485545,1721247032487,-250.0,0.00018403,2]
[332485546,1721247032497,-250.0,0.00018453,2]
[332485547,1721247032507,-300.0,0.00018496,2]
[332485548,1721247032516,-30000.0,0.00018497,2]
[332485549,1721247032526,-1000.0,0.000185,2]
[332485550,1721247032535,-250.0,0.00018502,2]
[332485551,1721247032544,-250.0,0.00018552,2]
[332485552,1721247032554,-250.0,0.00018601,2]
[332485553,1721247032563,-250.0,0.0001865,2]
[332485554,1721247032573,-250.0,0.000187,2]
[332485555,1721247032582,-250.0,0.00018749,2]
[332485556,1721247032592,-250.0,0.00018799,2]
[332485557,1721247032602,-250.0,0.00018848,2]
[332485558,1721247032611,-250.0,0.00018897,2]
[332485559,1721247032620,-250.0,0.00018947,2]
[332485560,1721247032630,-1000.0,0.00019,2]
[332485561,1721247032640,-228.8375676,0.00019178,2]
[332485562,1721247032651,-1000.0,0.000195,2]
[332485563,1721247032661,-580.17034475,0.000198,2]
[332485564,1721247032670,-2891.48938121,0.00019999,2]
[332485565,1721247032680,-1000.0,0.0002,2]
[332485566,1721247032690,-1000.0,0.000205,2]
[332485567,1721247032701,-1000.0,0.00021,2]
[332485568,1721247032710,-887.63385554,0.00021077,2]
[332485569,1721247032720,-442.770726,0.00021096,2]
[332485570,1721247032729,-169.331345,0.00021096,2]
[332485571,1721247032738,-1000.0,0.000215,2]
[332485572,1721247032748,-218.52037227,0.00021506,2]
[332485573,1721247032757,-253.4079656,0.00021507,2]
[332485574,1721247032767,-153.0,0.00021507,2]
[332485575,1721247032777,-153.0,0.00021507,2]
[332485576,1721247032786,-153.0,0.00021644,2]
[332485577,1721247032795,-153.0,0.00021644,2]
[332485578,1721247032805,-153.0,0.00021644,2]
[332485579,1721247032814,-153.0,0.00021644,2]
[332485580,1721247032823,-153.0,0.00021644,2]
[332485581,1721247032832,-153.0,0.00021644,2]
[332485582,1721247032841,-153.0,0.00021644,2]
[332485583,1721247032851,-324.87774632,0.0002178,2]
[332485584,1721247032860,-320.70573166,0.0002178,2]
[332485585,1721247032869,-151.0,0.00021786,2]
[332485586,1721247032879,-151.0,0.00021786,2]
[332485587,1721247032888,-3000.0,0.000218,2]
[332485588,1721247032899,-617.50907299,0.000218,2]
[332485589,1721247032913,-182.32246841,0.00021803,2]
[332485590,1721247032923,-617.50907296,0.00021804,2]
[332485591,1721247032932,-407.41997679,0.00021806,2]
[332485592,1721247032942,-617.50907296,0.00021809,2]
[332485593,1721247032953,-9679.45566586,0.00021809,3]
[332485594,1721247032963,-993.708044,0.00021809,2]
[332485595,1721247032972,-3000.0,0.0002181,2]
[332485596,1721247032985,-617.50907296,0.00021813,2]
[332485597,1721247032994,-909.07625877,0.00021816,2]
[332485598,1721247033003,-437.05827168,0.00021816,2]
[332485599,1721247033013,-1026.73530797,0.00021816,2]
[332485600,1721247033022,-36442.28106319,0.00021817,3]
[332485601,1721247033032,-2000.0,0.00021817,2]
[332485602,1721247033042,-617.50907296,0.00021817,2]
[332485603,1721247033052,-3000.0,0.0002182,2]
[332485604,1721247033062,-3361.85381771,0.00021829,2]
[332485605,1721247033071,-492.98180621,0.00021829,2]
[332485606,1721247033081,-3000.0,0.0002183,2]
[332485607,1721247033090,-263.29031622,0.00021839,2]
[332485608,1721247033099,-4241.834524,0.0002184,2]
[332485609,1721247033109,-209.2624115,0.00021889,2]
[332485610,1721247033119,-36077.29225271,0.0002189,3]
[332485682,1721247038503,-518.66166355,0.00020999,2]
[332485684,1721247038513,-3477.23671995,0.00021809,2]
[332485689,1721247038557,-7233.74085623,0.00021809,2]
[332485692,1721247038567,-2640.53041069,0.0002189,3]
[332485694,1721247038576,-9679.45566586,0.00021897,3]
[332485696,1721247038586,-500.0,0.00021899,2]
[332485698,1721247038596,-500.0,0.00021899,2]
[332485699,1721247038605,-185.65126172,0.00021899,2]
[332485701,1721247038614,-647.56679865,0.00021899,2]
[332485703,1721247038624,-500.0,0.00021899,2]
[332485705,1721247038633,-184.88352723,0.00021899,2]
[332485707,1721247038643,-500.0,0.00021899,2]
[332485709,1721247038652,-500.0,0.00021899,2]
[332485711,1721247038662,-500.0,0.00021899,2]
[332485713,1721247038671,-500.0,0.00021899,2]
[332485715,1721247038680,-500.0,0.00021899,2]
[332485717,1721247038691,-500.0,0.00021899,2]
[332485719,1721247038701,-374.0,0.000219,2]
[332485721,1721247038711,-2500.0,0.000219,2]
[332485723,1721247038721,-65531.55146003,0.000219,2]
[332485824,1721247042888,-115689.5577309,0.000219,2]
[332485827,1721247042899,-150.112233,0.000219,5]
[332485830,1721247042913,-150.112233,0.000219,3]
[332485832,1721247042923,-150.112233,0.000219,3]
[332485835,1721247042933,-6992.96242863,0.000219,2]
[332485836,1721247042943,-153.0,0.000219,2]
[332485839,1721247042952,-748.0,0.000219,2]
[332485843,1721247042961,-748.0,0.000219,2]
[332485847,1721247042970,-1350.53628133,0.00021905,2]
[332485850,1721247042980,-10225.90545474,0.00021906,5]
[332485853,1721247042990,-19358.9113317,0.00021906,3]
[332485857,1721247042999,-5076.74868265,0.00021907,5]
[332485863,1721247043042,-1437.39280895,0.00021907,5]
[332485940,1721247046697,-153.0,0.00021507,2]
[332485941,1721247046708,-94258.69994367,0.00021907,5]
[332485942,1721247046719,-45304.15081807,0.00021907,3]
[332485946,1721247393400,333.19,0.0001,10]
[332485947,1721247692349,3543.84347111,0.00012121,2]
[332485958,1721248233218,-300.0,0.00018396,2]
[332485959,1721248233228,-4250.4427763,0.00018397,2]
[332486018,1721248239154,-2147.12798362,0.00018397,2]
[332486020,1721248239166,-547.3820516,0.00018397,2]
[332486050,1721248240761,-23055.04718848,0.00018397,2]
[332486051,1721248240771,-536.03525283,0.000188,2]
[332486053,1721248240780,-566.04540984,0.000189,2]
[332486055,1721248240789,-536.03525276,0.00019914,2]
[332486056,1721248240798,-187.676254,0.00020045,2]
[332486057,1721248240808,-201.738142,0.00020219,2]
[332486058,1721248240817,-250.0,0.00020703,2]
[332486059,1721248240826,-250.0,0.0002076,2]
[332486060,1721248240835,-250.0,0.00020817,2]
[332486061,1721248240844,-250.0,0.00020874,2]
[332486062,1721248240854,-250.0,0.0002093,2]
[332486063,1721248240863,-250.0,0.00020987,2]
[332486064,1721248240874,-153.0,0.00021041,2]
[332486065,1721248240884,-250.0,0.00021044,2]
[332486066,1721248240893,-500.465026,0.00021096,2]
[332486067,1721248240903,-293.6566525,0.00021096,2]
[332486068,1721248240914,-293.6566525,0.00021096,2]
[332486069,1721248240924,-293.6566525,0.00021096,2]
[332486070,1721248240933,-293.6566525,0.00021096,2]
[332486071,1721248240942,-250.0,0.00021101,2]
[332486072,1721248240951,-250.0,0.00021157,2]
[332486073,1721248240960,-293.6566525,0.00021178,2]
[332486074,1721248240971,-586.7007833,0.00021178,2]
[332486075,1721248240980,-250.0,0.00021214,2]
[332486076,1721248240989,-250.0,0.00021271,2]
[332486077,1721248240999,-250.0,0.00021328,2]
[332486078,1721248241008,-1350.53628133,0.00021383,2]
[332486079,1721248241017,-293.79355816,0.00021384,2]
[332486080,1721248241026,-250.0,0.00021385,2]
[332486081,1721248241036,-1000.0,0.000214,2]
[332486082,1721248241045,-309.10360033,0.0002144,2]
[332486083,1721248241054,-250.0,0.00021441,2]
[332486084,1721248241063,-667.25209292,0.00021497,2]
[332486085,1721248241072,-250.0,0.00021498,2]
[332486086,1721248241082,-250.0,0.00021555,2]
[332486087,1721248241091,-321.06886241,0.00021611,2]
[332486088,1721248241101,-250.0,0.00021612,2]
[332486089,1721248241110,-154.97688251,0.00021667,2]
[332486090,1721248241120,-250.0,0.00021668,2]
[332486091,1721248241129,-159.8885354,0.00021684,2]
[332486092,1721248241139,-156.39202129,0.00021684,2]
[332486093,1721248241148,-464.4268793,0.00021685,2]
[332486094,1721248241157,-385.79995704,0.00021699,2]
[332486095,1721248241167,-150.112233,0.000217,2]
[332486096,1721248241176,-250.0,0.00021725,2]
[332486097,1721248241185,-250.0,0.00021782,2]
[332486098,1721248241195,-4510.4114252,0.00021807,3]
[332486099,1721248241204,-242.2411732,0.00021807,2]
[332486100,1721248241213,-500.0,0.00021816,2]
[332486101,1721248241223,-500.0,0.00021816,2]
[332486102,1721248241232,-500.0,0.00021816,2]
[332486103,1721248241241,-500.0,0.00021816,2]
[332486104,1721248241251,-147.37080425,0.00021816,2]
[332486156,1721248243866,-475.42820783,0.00021029,2]
[332486188,1721248260294,160.24652733,0.00014692,2]
[332486189,1721248267926,374.68623665,0.00014692,2]
[332486195,1721248524898,159.8885354,0.00015944,2]
[332486197,1721248545553,273.07491647,0.00015944,2]
[332486198,1721248545582,47.99394594,0.00015944,2]
[332486199,1721248555361,637.71236742,0.00015944,2]
[332486200,1721248555399,29.5397255,0.00015944,2]
[332486201,1721248582182,156.39202129,0.00015944,2]
[332486202,1721248587696,154.97688251,0.00015944,2]
[332486204,1721248633783,140.33967941,0.00015944,2]
[332486205,1721248633812,685.70631336,0.00015944,2]
[332486206,1721248633842,524.49028856,0.00015944,2]
[332486207,1721248666895,161.2160248,0.00015944,2]
[332486208,1721248666929,147.88757553,0.00015944,2]
[332486209,1721248672718,385.79995704,0.00015944,2]
[332486210,1721249390344,-755.80667803,0.00016388,2]
[332486211,1721249390398,-755.80667803,0.00016388,2]
[332486212,1721249390457,-479.23902346,0.00016388,2]
[332486252,1721249431965,-201.738142,0.00016519,2]
[332486253,1721249431976,-300.0,0.00016886,2]
[332486254,1721249431986,-245.87179172,0.00017024,2]
[332486255,1721249431999,-4.12820828,0.00017024,2]
[332486256,1721249432009,-250.0,0.00017071,2]
[332486257,1721249432020,-250.0,0.00017117,2]
[332486258,1721249432031,-250.0,0.00017164,2]
[332486259,1721249432041,-250.0,0.00017211,2]
[332486260,1721249432051,-250.0,0.00017257,2]
[332486261,1721249432061,-250.0,0.00017304,2]
[332486262,1721249432071,-250.0,0.00017351,2]
[332486263,1721249432084,-250.0,0.00017397,2]
[332486264,1721249432095,-250.0,0.00017444,2]
[332486265,1721249432106,-250.0,0.00017491,2]
[332486266,1721249432117,-250.0,0.00017537,2]
[332486267,1721249432129,-250.0,0.00017584,2]
[332486268,1721249432139,-250.0,0.00017631,2]
[332486269,1721249432150,-250.0,0.00017678,2]
[332486270,1721249432160,-250.0,0.00017724,2]
[332486271,1721249432171,-2122.47397933,0.0001777,2]
[332486272,1721249432181,-119.03287888,0.00017771,2]
[332486273,1721249432220,-130.96712112,0.00017771,2]
[332486274,1721249432230,-250.0,0.00017818,2]
[332486275,1721249432240,-250.0,0.00017864,2]
[332486276,1721249432250,-156.27535265,0.00017908,2]
[332486277,1721249432260,-250.0,0.00017911,2]
[332486278,1721249432270,-673.409405,0.00018081,2]
[332486279,1721249432281,-329.16322832,0.00018081,2]
[332486293,1721249437856,-9252.4351941,0.000165,2]
[332486294,1721249437866,-189.81097834,0.00017677,2]
[332486295,1721249437876,-28997.42736668,0.00018081,2]
[332486296,1721249437886,-476.60672679,0.00018296,2]
[332486297,1721249437895,-769.93782443,0.000189,2]
[332486298,1721249437904,-710.62866484,0.00019177,2]
[332486299,1721249437915,-162.3678794,0.00019178,2]
[332486300,1721249437925,-400.0,0.00019178,2]
[332486301,1721249437936,-476.60672679,0.00019464,2]
[332486302,1721249437946,-293.79355816,0.0002,2]
[332486303,1721249437955,-150.112233,0.0002,2]
[332486304,1721249437965,-476.60672679,0.00020633,2]
[332486305,1721249437975,-1178.67333003,0.00021,2]
[332486306,1721249437984,-153.0,0.00021041,2]
[332486307,1721249437993,-206.4665977,0.00021041,2]
[332486308,1721249438003,-153.0,0.00021041,2]
[332486309,1721249438013,-500.465026,0.00021096,2]
[332486310,1721249438022,-206.4665977,0.00021096,2]
[332486311,1721249438032,-1000.0,0.000214,2]
[332486312,1721249438041,-464.4268793,0.00021685,2]
[332486313,1721249438050,-151.0,0.00021743,2]
[332486314,1721249438060,-153.0,0.00021783,2]
[332486315,1721249438069,-476.60672679,0.00021801,2]
[332486316,1721249438078,-4782.62518813,0.00021807,5]
[332486455,1721249445887,-431.28948156,0.0001808,2]
[332486457,1721249445897,-570.1366743,0.00021807,5]
[332486463,1721249445943,-4873.14359231,0.00021807,5]
[332486465,1721249445952,-5746.53611489,0.00021807,3]
[332487189,1721249998826,-21951.81453504,0.00024,30]
[332487190,1721249998915,-157.7,0.000249,31]
[332487191,1721249998944,-157.7,0.000249,31]
[332487192,1721249998977,-157.7,0.000249,31]
[332487193,1721249999010,-157.7,0.000249,31]
[332487194,1721249999038,-157.7,0.000249,31]
[332487195,1721249999080,-500.0,0.00025,30]
[332487196,1721249999105,-500.0,0.00025,30]
[332487197,1721249999130,-500.0,0.00025,30]
[332487198,1721249999154,-500.0,0.00025,30]
[332487199,1721249999179,-500.0,0.00025,30]
[332487200,1721249999204,-500.0,0.00025,30]
[332487201,1721249999229,-500.0,0.00025,30]
[332487202,1721249999254,-500.0,0.00025,30]
[332487203,1721249999279,-500.0,0.00025,30]
[332487204,1721249999304,-500.0,0.00025,30]
[332487205,1721249999329,-500.0,0.00025,30]
[332487206,1721249999355,-500.0,0.00025,30]
[332487207,1721249999380,-500.0,0.00025,30]
[332487208,1721249999409,-588.0,0.00025,30]
[332487209,1721249999435,-1132810.07834474,0.00025,60]
[332487210,1721249999460,-150.45110664,0.00025,60]
[332487211,1721249999503,-157.7,0.000253,31]
[332487212,1721249999773,-157.7,0.000257,31]
[332487213,1721249999835,-157.7,0.000262,31]
[332487214,1721249999883,-157.7,0.000266,31]
[332487215,1721249999921,-1206.79320679,0.00027091,30]
[332487216,1721249999958,-170.176313,0.00027123,49]
[332487217,1721249999982,-170.176313,0.00027123,72]
[332487218,1721250000008,-170.176313,0.00027123,96]
[332487219,1721250000034,-170.176313,0.00027123,120]
[332487220,1721250000071,-500.0,0.00027397,30]
[332487221,1721250000096,-500.0,0.00027397,30]
[332487222,1721250000122,-511.20914691,0.00027397,30]
[332487223,1721250000153,-400.0,0.00027397,60]
[332487224,1721250000181,-3125.0,0.00027397,120]
[332487225,1721250000229,-281.8609933,0.000298,120]
[332487226,1721250000256,-608.78562231,0.0003,30]
[332487227,1721250000283,-203.41946974,0.0003,30]
[332487228,1721250000310,-950.0,0.0003,30]
[332487229,1721250000340,-501.21173856,0.0003,30]
[332487230,1721250000368,-170879.89762483,0.0003,30]
[332487231,1721250000395,-26084.3701,0.00030033,30]
[332487232,1721250000422,-409.11885894,0.00030137,60]
[332487233,1721250000451,-3115.45977653,0.00031619,30]
[332487234,1721250000480,-3125.0,0.00031963,120]
[332487235,1721250000508,-393.19407785,0.00032,120]
[332487236,1721250000537,-500.5,0.000328,62]
[332487237,1721250000566,-2413.58641359,0.00032814,120]
[332487238,1721250000595,-925.89259399,0.00033,120]
[332487239,1721250000620,-2932.57810732,0.00033,30]
[332487240,1721250000646,-200.0,0.00033079,120]
[332487241,1721250000674,-200.0,0.00033623,120]
[332487242,1721250000709,-505.0,0.000337,62]
[332487243,1721250000735,-395.2,0.000337,62]
[332487244,1721250000760,-20000.0,0.00034,30]
[332487245,1721250000785,-4000.0,0.00034,120]
[332487246,1721250000826,-20000.0,0.00034,30]
[332487247,1721250000859,-200.0,0.00034075,120]
[332487248,1721250000887,-200.0,0.00034146,120]
[332487249,1721250000914,-200.0,0.00034474,120]
[332487250,1721250000943,-1314.0,0.00034478,36]
[332487251,1721250000977,-200.0,0.00034594,120]
[332487252,1721250001010,-3115.45977653,0.00034619,30]
[332487253,1721250001039,-50000.0,0.000348,120]
[332487254,1721250001067,-7015230.75840162,0.00035,30]
[332487255,1721250001095,-4998.24436188,0.00035,120]